[Event "Baku Open 2024"]
[Site "Baku"]
[Date "2024.06.30"]
[Round "2.11"]
[White "Shyam, Sundar M."]
[Black "Aarav Sinha"]
[Result "1/2-1/2"]
[ECO "D00"]
[WhiteElo "2493"]
[BlackElo "2300"]
[Annotator "TA"]
[PlyCount "43"]
[EventDate "2024.06.29"]
[EventType "swiss"]
[EventCountry "AZE"]
[SourceTitle "playchess.com"]
[Source "ChessBase"]
[SourceQuality "1"]
[TimeControl "5400+30"]

{[%evp 11,43,-8,0,-7,0,0,65,69,90,71,111,86,91,49,77,-13,-13,-16,-9,-56,-13,-20,9,-54,-67,-83,-89,-164,-117,-111,-57,-64,-45,-77]} 1. d4 {[%emt 0:03:53]} Nf6 {[%emt 0:01:43]} 2. Bg5 {[%emt 0:00:11]} d5 {[%emt 0:00:07]} 3. Bxf6 {[%emt 0:00:05]} exf6 {[%emt 0:01:13]} 4. e3 {[%emt 0:00:09]} Bd6 {[%emt 0:00:05]} 5. Bd3 {[%emt 0:00:29]} c6 {[%emt 0:03:47]} 6. Nd2 {[%emt 0:02:17]} O-O {[%emt 0:01:27][%cal Bh8f8,Bf8e8,Be8e6][%mdl 32]} 7. Qf3 {[%emt 0:00:17]} Re8 {[%emt 0:02:04]} 8. Ne2 {[%emt 0:00:46]} g6 {[%emt 0:02:35]} (8... Na6 $11) 9. g4 $14 {[%emt 0:03:57] White is slightly better.} Bf8 {[%emt 0:14:24]} 10. Nf4 {[%emt 0:10:51]} Be6 {[%emt 0:02:40]} 11. h4 {[%emt 0:18:18] White is more active.} c5 {[%emt 0:04:02]} 12. Nxe6 {[%emt 0:00:05]} Rxe6 {[%emt 0:12:43]} 13. h5 {[%emt 0:02:55]} ({Better is} 13. dxc5 $16 {h5 would now be deadly.} Nc6 14. O-O-O) 13... cxd4 $11 {[%emt 0:09:38]} 14. hxg6 {[%emt 0:00:05]} hxg6 {[%emt 0:04:53]} 15. O-O-O {[%emt 0:01:19]} (15. e4 $11) 15... Nc6 {[%emt 0:01:29]} 16. Bf5 {[%emt 0:00:34]} Re8 {[%emt 0:07:08] [#] Threatens to win with ...Bg7.} (16... gxf5 $2 17. gxf5 Re5 18. Qh5 $18) (16... dxe3 {seems wilder.} 17. Ne4 e2 18. Qxe2 Re5) 17. Nb3 {[%emt 0:10:40]} dxe3 $15 {[%emt 0:14:52] White must now prevent ...e2.} (17... gxf5 18. gxf5 (18. Qxf5 Bg7 $17) 18... Bg7 19. Rdg1 $18 (19. Nxd4 Nxd4 20. exd4 Re4 $18) (19. exd4 Qd6 $18)) 18. fxe3 {[%emt 0:03:30]} Bg7 {[%emt 0:01:30]} (18... gxf5 19. gxf5 Bg7 20. Rdg1 $11) 19. Qh3 {[%emt 0:11:25] Against Qe7} Qb6 {[%emt 0:04:00]} ({Black should play} 19... Qe7 $19 20. Rde1 Rad8 (20... gxf5 21. gxf5 Kf8 22. Qh7 $15)) 20. Nd4 $17 {[%emt 0:08:59][%cal Oc1b1]} Nxd4 {[%emt 0:01:34]} (20... Re7 $17 {And now ...Rae8 would win.} 21. c3 Nxd4 22. Rxd4 Rae8) 21. exd4 $15 {[%emt 0:00:09]} Qd6 {[%emt 0:02:36]} (21... a5 $5) 22. Kb1 {[%emt 0:11:23] Weighted Error Value: White=0.34/Black=0.28 (precise) .  Mistake:       	White=4     	Black=3      Inaccurate:     	White=2     	Black=4      OK:         	White=2     	Black=2      Best:        	White=2     	Black=2} 1/2-1/2

[Event "Baku Open 2024"]
[Site "Baku"]
[Date "2024.06.30"]
[Round "2.12"]
[White "Akhilbay, Imangali"]
[Black "Movahed, Sina"]
[Result "0-1"]
[ECO "A13"]
[WhiteElo "2303"]
[BlackElo "2482"]
[Annotator "TA"]
[PlyCount "104"]
[EventDate "2024.06.29"]
[EventType "swiss"]
[EventCountry "AZE"]
[SourceTitle "playchess.com"]
[Source "ChessBase"]
[SourceQuality "1"]
[TimeControl "5400+30"]

{[%evp 29,104,-28,79,69,76,47,44,22,92,22,22,-6,-10,-15,-29,-53,-56,-53,-61,-87,-15,-104,-57,-47,-60,-61,0,0,0,0,0,0,0,0,0,0,0,0,0,-149,-154,-156,-152,-157,-160,-149,-146,-177,-50,-57,-57,-57,-57,-57,-57,-57,-20,-20,-27,-45,-45,-65,-65,-132,-132,-941,-952,-791,-181,-214,-181,-205,-169,-246,-224,-29963,-29956]} 1. c4 {[%emt 0:00:04]} e6 {[%emt 0:00:15]} 2. g3 {[%emt 0:00:16]} d5 {[%emt 0:00:57]} 3. Bg2 {[%emt 0:00:06]} d4 {[%emt 0:00:49]} 4. Nf3 {[%emt 0:00:16]} c5 {[%emt 0:00:41]} 5. e3 {[%emt 0:01:48]} Nc6 {[%emt 0:00:44]} 6. exd4 {[%emt 0:00:07] A13: English Opening: 1...e6.} cxd4 {[%emt 0:00:57]} 7. O-O {[%emt 0:00:18]} Bd6 {[%emt 0:00:43]} 8. d3 {[%emt 0:00:17]} Nge7 {[%emt 0:00:33]} 9. Na3 $146 {[%emt 0:02:06]} ({Predecessor:} 9. Re1 O-O 10. Nbd2 a5 11. a3 Ng6 12. Rb1 h6 13. Qc2 Be7 14. h4 f5 15. h5 {1-0 Mareco,S (2614)-Garcia Ramos,D (2468) ESP-chT CECLUB Div2 2023 (3.2)}) 9... O-O {[%emt 0:04:10]} 10. Nc2 {[%emt 0:01:11]} Nf5 {[%emt 0:01:33]} 11. a3 {[%emt 0:05:33]} a5 {[%emt 0:00:12]} 12. b3 {[%emt 0:00:37]} Rb8 {[%emt 0:02:58]} 13. Rb1 {[%emt 0:07:39]} b5 {[%emt 0:03:50]} 14. Nd2 {[%emt 0:01:35]} Bd7 {[%emt 0:06:30]} 15. b4 {[%emt 0:05:47]} (15. cxb5 $14 Rxb5) 15... Ne5 {[%emt 0:10:13]} (15... axb4 $11 16. axb4 bxc4 17. Nxc4 Bc7) 16. c5 $16 {[%emt 0:08:51]} Bc7 {[%emt 0:01:28]} 17. Qe2 {[%emt 0:01:23]} Bc6 {[%emt 0:02:51]} 18. Ne4 {[%emt 0:00:14]} Bd5 {[%emt 0:02:09]} (18... a4 $1 $11 {keeps the balance.}) 19. f4 {[%emt 0:04:12]} (19. bxa5 $16 Bxa5 20. Bf4) 19... Nc6 $11 {[%emt 0:00:50]} 20. Qf2 {[%emt 0:58:10]} (20. Ng5 {feels hotter.} Qd7 21. Bxd5 Qxd5 22. g4) 20... axb4 {[%emt 0:02:33]} 21. Nxb4 {[%emt 0:00:00]} Nxb4 {[%emt 0:09:25]} 22. Rxb4 {[%emt 0:00:00]} Ba5 {[%emt 0:01:38]} 23. Rb1 {[%emt 0:00:00]} Bc3 {[%emt 0:02:04]} 24. Rd1 {[%emt 0:00:00]} Qe7 {[%emt 0:06:53]} ({Black should play} 24... b4 $17 {aiming for ...bxa3.} 25. axb4 Bxb4) 25. Bh1 {[%emt 0:00:00]} (25. g4 $11 Bxe4 (25... Nh4 26. f5 $14) 26. Bxe4) 25... Rfd8 {[%emt 0:03:02]} (25... h5 $17 26. Bd2 Bxd2 27. Rxd2 g6) 26. g4 $15 {[%emt 0:00:00]} Nh6 $1 {[%emt 0:00:32]} 27. h3 {[%emt 0:00:00]} f5 {[%emt 0:00:32]} ({Better is} 27... Bxe4 $15 28. dxe4 f6 (28... Qxc5 29. g5 $16)) 28. Nxc3 $11 {[%emt 0:04:00]} dxc3 {[%emt 0:35:28]} 29. g5 $1 {[%emt 0:00:00]} Nf7 {[%emt 0:00:00]} 30. d4 {[%emt 0:00:00]} Bxh1 {[%emt 0:00:00]} 31. Kxh1 {[%emt 0:00:00]} e5 {[%emt 0:00:00]} 32. fxe5 {[%emt 0:00:00]} Qb7+ {[%emt 0:00:00]} (32... Nxg5 $2 33. Bxg5 Qxg5 34. Rd3 $18) 33. Kh2 {[%emt 0:00:00]} Nxe5 {[%emt 0:00:00]} 34. Bf4 {[%emt 0:00:00]} (34. Rb3 $1 $11 {remains equal.}) 34... Nf3+ $1 $17 {[%emt 0:00:00]} 35. Kg3 {[%emt 0:00:00]} Nd2 $1 {[%emt 0:00:00]} 36. Rxd2 {[%emt 0:00:00]} cxd2 {[%emt 0:00:00]} 37. Qxd2 {[%emt 0:00:04]} Ra8 {[%emt 0:00:00]} 38. Qe3 {[%emt 0:01:50]} Qe4 {[%emt 0:00:00]} (38... Qd5 $1 $19 {[%cal Rd5d4]} 39. Rb4 Qa2 40. Qb3+ Qxb3+ 41. Rxb3 Rxd4) 39. Qxe4 $15 {[%emt 0:01:20]} fxe4 {[%emt 0:00:00]} 40. c6 {[%emt 0:01:00]} Rxd4 {[%emt 0:00:00]} 41. Rxb5 {[%emt 0:00:57]} Rc4 {[%emt 0:00:00]} (41... Rxa3+ 42. Kg4 e3 43. Rb8+ (43. c7 Rc3 $15) 43... Kf7 44. c7) 42. c7 {[%emt 0:00:26]} Rxa3+ {[%emt 0:00:00]} 43. Kg4 {[%emt 0:00:59]} Rac3 {[%emt 0:00:00]} 44. Be5 {[%emt 0:00:27]} Rc2 {[%emt 0:00:00]} 45. Kf5 {[%emt 0:00:47]} Kf7 $1 {[%emt 0:00:00]} 46. Kf4 {[%emt 0:00:24]} ({White should try} 46. Rb7 $15 g6+ 47. Kf4) 46... Rf2+ $17 {[%emt 0:02:41]} 47. Ke3 $2 {[%emt 0:00:09][%mdl 8192]} (47. Kg3 $17 Rf5 48. Rb4) 47... Rf3+ $19 {[%emt 0:00:18]} 48. Ke2 {[%emt 0:00:23]} Ke6 $2 {[%emt 0:00:15]} (48... Rc2+ 49. Kd1 Rg2) 49. Rb4 $19 {[%emt 0:00:14]} Rc2+ {[%emt 0:00:40]} (49... Rxb4 $2 50. c8=Q+ (50. c8=B+ Kxe5 51. Bg4 Rb2+ 52. Ke1 Rff2 53. h4 e3 54. Bd1 Rb1 55. g6 Rd2 56. gxh7 Rbxd1#) 50... Kxe5 51. Qc5+ Kf4 52. Qf8+ (52. Qxb4 Re3+ 53. Kf1 Rf3+ 54. Kg1 Kxg5 $18) 52... Kxg5 53. Qxg7+ (53. Qxb4 Rf5 $18) 53... Kf5 54. Qf8+ (54. Qxh7+ Kf6 $11) 54... Kg6 55. Qxb4 $18) 50. Kd1 {[%emt 0:00:02] [#]} Rc5 $1 {[%emt 0:00:24]} 51. Rxe4 {[%emt 0:00:44] [#]} (51. Ke1 {was necessary.}) 51... Kf5 $1 $19 {[%emt 0:01:02]} ({And not} 51... Rxe5 52. c8=Q+ (52. c8=B+ $2 {is the wrong capture.} Kd6 $19) 52... Kd5 53. Qa8+ Kd6 54. Rd4+ (54. Qb8+ Kc6 55. Rxe5 Rf1+ 56. Ke2 Rf7 57. Qe8+ Kd6 58. Qe6+ Kc7 59. Rc5+ Kb8 60. Qxf7 g6 61. Qc7+ Ka8 62. Ra5#) 54... Ke7 55. Qxf3 Ke8 56. Qb7) 52. Bd6 $2 {[%emt 0:00:58]} (52. Re2 $19) 52... Rd3+ {[%emt 0:00:08]} (52... Kxe4 $2 {too greedy.} 53. Bxc5 Kd3 54. Ke1 $18 (54. c8=B $2 Rf1#)) 0-1

[Event "Baku Open 2024"]
[Site "Baku"]
[Date "2024.06.30"]
[Round "2.13"]
[White "Ahmadzada, Ahmad"]
[Black "Novozhilov, Semen"]
[Result "1-0"]
[ECO "B62"]
[WhiteElo "2481"]
[BlackElo "2288"]
[Annotator "RC"]
[PlyCount "59"]
[EventDate "2024.06.29"]
[EventType "swiss"]
[EventCountry "AZE"]
[SourceTitle "playchess.com"]
[Source "ChessBase"]
[SourceQuality "1"]
[TimeControl "5400+30"]

1. e4 {[%emt 0:00:09]} c5 {[%emt 0:00:06]} 2. Nf3 {[%emt 0:00:21]} d6 {[%emt 0:00:05]} 3. d4 {[%emt 0:00:16]} cxd4 {[%emt 0:00:06]} 4. Nxd4 {[%emt 0:00:04]} Nf6 {[%emt 0:00:07]} 5. Nc3 {[%emt 0:00:04]} Nc6 {[%emt 0:00:06]} 6. Bg5 {[%emt 0:00:32]} e6 {[%emt 0:00:09]} 7. Qd3 {[%emt 0:00:32]} Bd7 {[%emt 0:01:05]} 8. O-O-O {[%emt 0:00:22]} a6 {[%emt 0:02:09]} 9. f4 {[%emt 0:00:51]} Qb6 {[%emt 0:38:02]} 10. Nxc6 {[%emt 0:10:11]} Bxc6 {[%emt 0:00:42]} 11. f5 {[%emt 0:07:23]} Qa5 {[%emt 0:02:07]} 12. Bxf6 {[%emt 0:03:47]} gxf6 {[%emt 0:00:08]} 13. Qh3 {[%emt 0:02:41]} exf5 {[%emt 0:05:44]} 14. Bc4 {[%emt 0:04:38]} O-O-O {[%emt 0:15:19]} 15. Rhf1 {[%emt 0:04:23]} Kb8 {[%emt 0:09:11]} 16. Rxf5 {[%emt 0:04:12]} Qb4 {[%emt 0:05:07]} 17. Qd3 {[%emt 0:00:39]} Rg8 {[%emt 0:00:46]} 18. g3 {[%emt 0:03:24]} Rg5 {[%emt 0:00:53]} 19. a3 {[%emt 0:06:50]} Qb6 {[%emt 0:00:12]} 20. Rf3 {[%emt 0:05:13]} f5 {[%emt 0:02:48]} 21. Rxf5 {[%emt 0:02:40]} Rxf5 {[%emt 0:00:18]} 22. exf5 {[%emt 0:00:07]} d5 {[%emt 0:04:06]} 23. Nxd5 {[%emt 0:04:00]} Qc5 {[%emt 0:01:48]} 24. Qd4 {[%emt 0:04:02]} Qd6 {[%emt 0:02:00]} 25. Kb1 {[%emt 0:01:35]} Qh6 {[%emt 0:01:44]} 26. Qe5+ {[%emt 0:05:28]} Ka7 {[%emt 0:00:16]} 27. Qc7 {[%emt 0:01:55]} Rd7 {[%emt 0:01:17]} 28. Qb6+ {[%emt 0:00:33]} Kb8 {[%emt 0:00:06]} 29. Re1 {[%emt 0:00:46]} Rd6 {[%emt 0:02:18]} 30. Bxa6 {[%emt 0:00:06]} 1-0

[Event "Baku Open 2024"]
[Site "Baku"]
[Date "2024.06.30"]
[Round "2.14"]
[White "Khamdamova, Afruza"]
[Black "Tsaruk, Maksim"]
[Result "1/2-1/2"]
[ECO "B01"]
[WhiteElo "2291"]
[BlackElo "2480"]
[Annotator "TA"]
[PlyCount "154"]
[EventDate "2024.06.29"]
[EventType "swiss"]
[EventCountry "AZE"]
[SourceTitle "playchess.com"]
[Source "ChessBase"]
[SourceQuality "1"]
[TimeControl "5400+30"]

{[%evp 51,154,0,0,-6,-7,-10,0,-75,0,0,0,0,0,0,0,0,0,0,0,-6,0,0,0,0,29,19,31,32,34,32,34,25,65,65,87,89,88,76,76,59,88,35,33,37,34,28,131,135,122,125,253,231,235,134,134,134,134,134,134,134,134,134,134,134,129,8,8,0,8,8,51,16,183,103,168,0,0,0,0,0,0,0,0,0,0,0,0,0,0,0,0,0,0,0,0,0,0,0,0,0,0,0,0,0,0]} 1. e4 {[%emt 0:00:02]} d5 {[%emt 0:00:09]} 2. exd5 {[%emt 0:00:30]} Nf6 {[%emt 0:00:08]} 3. Nf3 {[%emt 0:00:41]} Bg4 {[%emt 0:00:56]} 4. Bb5+ {[%emt 0:08:08]} Nbd7 {[%emt 0:00:08]} 5. h3 {[%emt 0:02:58]} a6 {[%emt 0:20:23]} 6. Ba4 {[%emt 0:14:22]} Bf5 {[%emt 0:06:19]} 7. c4 {[%emt 0:00:36]} e6 {[%emt 0:34:04]} 8. dxe6 {[%emt 0:07:28]} Bxe6 {[%emt 0:00:38]} 9. d3 {[%emt 0:02:50]} Bb4+ {[%emt 0:00:46]} 10. Bd2 {[%emt 0:06:20]} Bxd2+ {[%emt 0:00:06]} 11. Nbxd2 {[%emt 0:02:40]} O-O {[%emt 0:00:05]} 12. O-O {[%emt 0:01:12]} Nc5 {[%emt 0:00:04]} 13. d4 {[%emt 0:00:35]} Nxa4 {[%emt 0:00:06]} 14. Qxa4 {[%emt 0:00:05]} b5 {[%emt 0:00:03]} 15. Qc2 {[%emt 0:04:15]} bxc4 {[%emt 0:00:05]} 16. Nxc4 {[%emt 0:00:04]} a5 {[%emt 0:00:04]} 17. Nce5 {[%emt 0:04:36]} h6 {[%emt 0:03:54]} 18. Nc6 {[%emt 0:05:01]} Qd6 {[%emt 0:00:23]} 19. Qc5 {[%emt 0:01:00]} Nd5 {[%emt 0:03:00]} 20. Nce5 {[%emt 0:04:32]} Nf4 {[%emt 0:01:43]} 21. Rfe1 {[%emt 0:07:37]} Bd5 {[%emt 0:02:39]} 22. Re3 {[%emt 0:00:20]} Rfb8 {[%emt 0:04:31]} 23. b3 {[%emt 0:04:35]} a4 {[%emt 0:04:22]} 24. Rc1 {[%emt 0:05:35]} axb3 {[%emt 0:06:19]} 25. axb3 {[%emt 0:00:06]} Bxb3 {[%emt 0:00:12]} 26. Nc6 {[%emt 0:03:34]} (26. Qxc7 Qxc7 27. Rxc7 $19) 26... Rb6 {[%emt 0:04:16]} 27. Qxd6 {[%emt 0:03:14]} cxd6 {[%emt 0:00:06]} 28. Ne7+ {[%emt 0:00:01]} Kh7 {[%emt 0:01:33]} 29. Nc8 {[%emt 0:00:11]} (29. Rb1 $1 $11 {remains equal.} Rab8 30. g3) 29... Rbb8 {[%emt 0:00:49]} ({Black should play} 29... Rba6 $1 $17) 30. Nxd6 $11 {[%emt 0:00:09]} Bd5 {[%emt 0:00:09]} 31. Ne4 {[%emt 0:05:09]} Rb2 {[%emt 0:00:39]} 32. Nc3 {[%emt 0:00:13]} Rc8 {[%emt 0:00:46]} 33. Rce1 {[%emt 0:00:35]} Bb7 {[%emt 0:00:13]} 34. Na4 {[%emt 0:01:32]} Ra2 {[%emt 0:00:17]} 35. Nc5 {[%emt 0:00:07]} Bd5 {[%emt 0:00:05]} 36. Rd1 {[%emt 0:02:09]} g5 {[%emt 0:05:07]} 37. Nd3 {[%emt 0:02:05]} Rcc2 {[%emt 0:03:04]} 38. Nfe1 {[%emt 0:00:12]} Rd2 $1 {[%emt 0:00:33]} 39. Rxd2 {[%emt 0:00:20]} Rxd2 {[%emt 0:00:02]} 40. Nxf4 {[%emt 0:00:16]} gxf4 {[%emt 0:00:00]} 41. Rd3 {[%emt 0:00:01]} Re2 {[%emt 0:00:03]} 42. Rd1 {[%emt 0:00:58]} Kg6 {[%emt 0:00:10]} 43. Nd3 {[%emt 0:00:32]} Kf5 {[%emt 0:00:52]} 44. f3 {[%emt 0:00:53]} Bc4 {[%emt 0:01:16]} 45. Nc5 {[%emt 0:01:19]} Rc2 {[%emt 0:00:19]} 46. Re1 {[%emt 0:02:43]} (46. Ne4 $16 {And now d5 would win.} Bd5 47. Rb1) 46... Rd2 $14 {[%emt 0:01:29]} 47. Re5+ {[%emt 0:00:04]} Kg6 {[%emt 0:00:03]} 48. Re4 {[%emt 0:00:18]} Kg5 {[%emt 0:00:41]} (48... Rd1+ $11 49. Kh2 Kg5) 49. h4+ $1 $16 {[%emt 0:00:17]} Kxh4 {[%emt 0:00:21]} 50. Rxf4+ {[%emt 0:00:04]} Kh5 {[%emt 0:00:34]} (50... Kg5 $16 {was necessary.} 51. Ne4+ Kxf4 52. Nxd2 Ba2) 51. Ne4 $18 {[%emt 0:00:19]} Rd1+ {[%emt 0:00:37]} 52. Kh2 {[%emt 0:00:03]} (52. Kf2 $18 {Intending Rg4 and mate.} Be6 53. Rf6 Rxd4 54. g4+ Bxg4 55. Rf4 (55. fxg4+ Kxg4 56. Ke3 Rd1 $16) 55... Bxf3 56. Nf6+ (56. Kxf3 Rd3+ 57. Ke2 Ra3 $14) (56. Rxf3 Rxe4 57. Rxf7 Kg4 $11) 56... Kg6 57. Rxd4) 52... Bd3 $16 {[%emt 0:00:42]} 53. Nf2 {[%emt 0:02:46]} ({Reject} 53. Rxf7 $6 Bxe4 54. fxe4 Rxd4 $14) 53... Rd2 {[%emt 0:00:01]} 54. Nxd3 $1 {[%emt 0:00:10]} Rxd3 {[%emt 0:00:01]} 55. Rxf7 {[%emt 0:00:01]} Rxd4 {[%emt 0:00:02]} 56. Rg7 {[%emt 0:00:10]} Rb4 {[%emt 0:01:59]} 57. Kg3 {[%emt 0:00:27]} Rb3 {[%emt 0:00:20]} 58. Kf4 {[%emt 0:00:20]} (58. Rg8 $16) 58... Rb4+ {[%emt 0:00:12]} 59. Kf5 {[%emt 0:00:57]} Rb5+ {[%emt 0:00:14]} 60. Kf6 {[%emt 0:00:11]} Rb6+ {[%emt 0:00:04]} 61. Kf7 {[%emt 0:00:04]} Kh4 {[%emt 0:01:21] [#]} 62. Rg4+ $1 {[%emt 0:01:57]} Kh5 {[%emt 0:00:02] [#]} 63. Rg7 $2 {[%emt 0:00:05]} ({Only move:} 63. Rg3 $1 $18) 63... Kh4 $11 {[%emt 0:00:04]} 64. Rg6 {[%emt 0:01:18]} Rb7+ {[%emt 0:00:19]} 65. Kg8 {[%emt 0:00:19]} (65. Kf6 $5 h5 $8 66. f4 Rb6+ 67. Kf7 Rb7+ 68. Kf6 Rf7+ 69. Ke6 Re7+ 70. Kd6 Rd7+ 71. Kc6 Rc7+ 72. Kd5 $11) 65... h5 $1 {[%emt 0:00:35]} 66. g3+ {[%emt 0:00:05]} Kh3 {[%emt 0:00:05]} 67. f4 {[%emt 0:00:02]} Rb5 {[%emt 0:01:53]} 68. Kh7 {[%emt 0:01:34]} (68. Kg7 $5 h4 $8 69. gxh4 (69. g4 Kg3 $11) 69... Kxh4 70. Kf6 $11) 68... h4 {[%emt 0:00:45]} 69. gxh4 {[%emt 0:00:33]} Kxh4 {[%emt 0:00:05]} 70. Rf6 {[%emt 0:00:18]} Kh5 {[%emt 0:00:51]} 71. Rf7 {[%emt 0:00:32]} Kg4 {[%emt 0:00:28]} 72. Kg6 {[%emt 0:00:03]} Rb6+ {[%emt 0:00:05]} 73. Kg7 {[%emt 0:00:04]} Rb5 {[%emt 0:00:04]} 74. Kg6 {[%emt 0:00:25]} Rb6+ {[%emt 0:00:05]} 75. Kg7 {[%emt 0:00:03]} Rb5 {[%emt 0:00:04]} 76. Kg6 {[%emt 0:00:31]} Rb6+ {[%emt 0:00:05]} 77. Kg7 {[%emt 0:00:13]} Rb5 {[%emt 0:00:04]} 1/2-1/2

[Event "Baku Open 2024"]
[Site "Baku"]
[Date "2024.06.30"]
[Round "2.15"]
[White "Assaubayeva, Bibisara"]
[Black "Moosavifar, Seyed Abolfazl"]
[Result "1/2-1/2"]
[ECO "C50"]
[WhiteElo "2472"]
[BlackElo "2283"]
[Annotator "TA"]
[PlyCount "71"]
[EventDate "2024.06.29"]
[EventType "swiss"]
[EventCountry "AZE"]
[SourceTitle "playchess.com"]
[Source "ChessBase"]
[SourceQuality "1"]
[TimeControl "5400+30"]

{[%evp 9,71,23,12,13,8,-13,0,0,0,-2,0,0,0,0,-16,-14,2,5,8,0,0,0,21,31,25,8,24,14,41,6,10,14,37,30,49,47,30,0,0,0,0,0,23,27,27,27,23,17,27,31,23,25,27,27,22,16,14,13,11,12,12,12,12,12]} 1. e4 {[%emt 0:00:09]} e5 {[%emt 0:00:05]} 2. Nf3 {[%emt 0:00:05]} Nc6 {[%emt 0:00:02]} 3. Bc4 {[%emt 0:00:09]} Bc5 {[%emt 0:00:01]} 4. Nc3 {[%emt 0:00:09]} d6 {[%emt 0:01:10]} 5. Na4 {[%emt 0:04:02]} Qf6 {[%emt 0:05:46]} 6. Nxc5 {[%emt 0:08:10]} dxc5 {[%emt 0:00:02]} 7. O-O {[%emt 0:02:39]} Bg4 {[%emt 0:03:49]} 8. Be2 {[%emt 0:04:04]} Nge7 {[%emt 0:07:29]} 9. d3 {[%emt 0:02:38]} h6 {[%emt 0:25:18]} 10. Be3 {[%emt 0:01:35]} b6 {[%emt 0:01:24]} 11. Nd2 {[%emt 0:07:11]} Bxe2 {[%emt 0:03:44]} 12. Qxe2 {[%emt 0:00:02]} Nd4 {[%emt 0:01:15]} 13. Qd1 {[%emt 0:01:18]} Ng6 {[%emt 0:01:58]} 14. a4 {[%emt 1:05:19]} O-O {[%emt 0:09:48]} 15. g3 {[%emt 0:00:00]} Qc6 {[%emt 0:04:20]} 16. c3 {[%emt 0:00:00]} Ne6 {[%emt 0:00:06]} 17. Nc4 {[%emt 0:00:00]} Rad8 {[%emt 0:06:19]} 18. h4 {[%emt 0:00:00][%cal Bh2h4,Bh4h5,Bh5g6][%mdl 32]} Nef4 {[%emt 0:22:26]} 19. gxf4 {[%emt 0:00:00]} exf4 {[%emt 0:00:01][%cal Oc6e6] [#] And now ...Qe6! would win.} 20. h5 {[%emt 0:00:00]} f5 {[%emt 0:00:46][%cal Of5e4] Inhibits Qg4.} 21. Qf3 {[%emt 0:00:00]} Rxd3 {[%emt 0:03:23]} (21... fxe3 22. hxg6 e2 23. Qxe2 Qxg6+ 24. Kh2 fxe4 25. f4 (25. dxe4 $2 Rf4 $19) 25... exf3 26. Rxf3 $11) 22. hxg6 {[%emt 0:00:00]} fxe4 {[%emt 0:00:11]} 23. Ne5 {[%emt 0:00:00]} (23. Qg4 $5 Rd5 24. Bxf4 Rxf4 25. Qxf4 Qxg6+ 26. Qg3 $14) 23... exf3 {[%emt 0:00:55]} 24. Nxc6 {[%emt 0:00:00][%cal Be5c6,Bc6a7,Ba7b5][%mdl 32]} fxe3 {[%emt 0:00:02]} 25. fxe3 {[%emt 0:00:00]} (25. Nxa7 $2 {is the wrong capture.} e2 26. Rfe1 Rf6 $19) 25... Rf6 {[%emt 0:00:34]} 26. Nxa7 {[%emt 0:00:00]} Rxe3 {[%emt 0:01:15]} 27. Rad1 {[%emt 0:00:00] [#] Hoping for Rd8+.} Rxg6+ {[%emt 0:00:34]} 28. Kf2 {[%emt 0:00:00]} Re2+ {[%emt 0:00:29]} 29. Kxf3 {[%emt 0:00:00]} Rxb2 {[%emt 0:00:02]} 30. Nb5 {[%emt 0:00:00]} c6 {[%emt 0:00:34]} 31. Nd6 {[%emt 0:00:00]} ({Not} 31. Rd8+ $2 Kh7 32. Ke4 (32. Rd6 $2 cxb5 33. Rxg6 Kxg6 $19) 32... Re6+ (32... cxb5 $2 33. axb5 Rg4+ 34. Ke5 $19) 33. Kd3 (33. Kf5 $2 Rf6+ 34. Ke4 Rxf1 $19) 33... cxb5 $19) 31... Ra2 $1 {[%emt 0:00:51]} 32. Nc8 {[%emt 0:00:00] The position is equal.} Rf6+ {[%emt 0:00:25]} 33. Kg3 {[%emt 0:00:00] Threatens to win with Rxf6.} Rxf1 {[%emt 0:00:57]} 34. Rxf1 {[%emt 0:00:00]} b5 {[%emt 0:00:00]} 35. axb5 {[%emt 0:04:37]} cxb5 {[%emt 0:00:02]} 36. Rf5 {[%emt 0:06:23] Weighted Error Value: White=0.05 (flawless) /Black=0.05 (flawless) .  Inaccurate:     	White=2     	Black=1      OK:         	White=16    	Black=12     Best:        	White=1     	Black=5      Strong:       	---       	Black=1} 1/2-1/2